bitfinex-derivatives/quotes_BNBF0:USTF0_20250424
["timestamp","ask_amount","ask_price","bid_price","bid_amount"]
[1745498070161,0.2911196,598.69,596.88,0.754]
[1745498070365,0.27524587,598.68,596.88,0.754]
[1745498070563,0.27524587,598.67,596.88,0.754]
[1745498070766,0.27524587,598.66,596.88,0.754]
[1745498071066,0.27524587,598.65,596.88,0.754]
[1745498073267,0.2911196,598.66,596.88,0.754]
[1745498073463,0.2752117,598.64,596.88,0.754]
[1745498073666,0.2911196,598.66,596.88,0.754]
[1745498073667,0.2752117,598.63,596.88,0.754]
[1745498073861,0.2752117,598.65,596.88,0.754]
[1745498074064,0.2752117,598.64,596.88,0.754]
[1745498074266,0.2752117,598.93,596.88,0.754]
[1745498074467,0.2752117,598.92,596.88,0.754]
[1745498074763,1.27887129,598.94,596.88,0.754]
[1745498074962,0.29116344,598.91,596.88,0.754]
[1745498075166,0.27521131,598.9,596.88,0.754]
[1745498075366,0.27521131,598.89,596.88,0.754]
[1745498075570,0.27521131,598.88,596.88,0.754]
[1745498075865,0.27521131,598.87,596.88,0.754]
[1745498076069,0.27521131,598.86,596.88,0.754]
[1745498076367,0.29116344,598.91,596.88,0.754]
[1745498076568,0.27521186,598.9,596.88,0.754]
[1745498076768,0.29116344,598.91,596.88,0.754]
[1745498076769,0.27521186,598.89,596.89,0.30761199]
[1745498076970,0.27521186,598.88,596.89,0.30761199]
[1745498077166,0.27521186,598.87,596.89,0.30761199]
[1745498077363,0.27521186,598.86,596.89,0.30761199]
[1745498077564,0.27521186,598.85,596.88,0.754]
[1745498077763,0.27521186,598.84,596.88,0.754]
[1745498077969,0.27521284,598.83,596.88,0.754]
[1745498078269,0.27521284,598.82,596.88,0.754]
[1745498078469,0.27521284,598.81,596.88,0.754]
[1745498078670,0.27521284,598.8,596.88,0.754]
[1745498078969,0.27521284,598.79,596.89,0.818]
[1745498079165,0.27521284,598.78,596.89,0.818]
[1745498079366,0.27521284,598.77,596.89,0.818]
[1745498079565,1.27887129,598.34,596.89,0.818]
[1745498079764,0.27521284,598.33,596.89,0.818]
[1745498079970,0.27521284,598.32,596.89,0.818]
[1745498080269,0.27521284,598.31,596.89,0.818]
[1745498080470,0.27521284,598.3,596.89,0.818]
[1745498080769,0.27521284,598.29,596.89,0.818]
[1745498080970,0.27521284,598.28,596.89,0.818]
[1745498081269,0.29122314,598.29,596.89,0.818]
[1745498081270,0.27521284,598.27,596.89,0.818]
[1745498081471,0.27521284,598.26,596.89,0.818]
[1745498081665,0.27521284,598.25,596.89,0.818]
[1745498081869,0.27521284,598.24,596.89,0.818]
[1745498082069,0.27521284,598.28,596.89,0.818]
[1745498082270,0.27521284,598.27,596.89,0.818]
[1745498082470,0.29122314,598.29,596.89,0.818]
[1745498082670,0.27519554,598.28,596.89,0.818]
[1745498082969,0.27519554,598.27,596.89,0.818]
[1745498088476,0.27520128,598.26,596.89,0.818]
[1745498088670,0.27520128,598.26,596.9,1.018]
[1745498088873,0.27520128,598.25,596.9,1.018]
[1745498089068,0.27520128,598.76,596.9,1.018]
[1745498089269,0.29117928,598.25,596.9,1.018]
[1745498089471,0.27520128,598.24,596.9,1.018]
[1745498089674,0.27520128,598.76,596.9,1.018]
[1745498089871,0.27520128,598.75,596.9,1.018]
[1745498090074,0.27520128,598.74,596.9,1.018]
[1745498090276,0.27520128,598.73,596.9,1.018]
[1745498090478,0.27520128,598.72,596.9,1.018]
[1745498090677,0.27520128,598.71,596.9,1.018]
[1745498090873,0.27520128,598.7,596.9,1.018]
[1745498091076,0.27520128,598.69,596.91,0.3075968]
[1745498091273,0.27520128,598.68,596.91,0.3075968]
[1745498091479,0.27520128,598.67,596.9,1.805]
[1745498091677,0.27520128,598.66,596.9,1.805]
[1745498091879,1.27887129,598.75,596.9,1.805]
[1745498092079,0.29118171,598.66,596.9,1.805]
[1745498092280,0.27519991,598.65,596.9,1.805]
[1745498092478,0.27519991,598.64,596.9,1.805]
[1745498092678,0.27519991,598.63,596.9,1.805]
[1745498092876,0.27519991,598.62,596.9,1.805]
[1745498093073,0.27519991,598.61,596.9,1.805]
[1745498093275,0.27519991,598.6,596.9,1.805]
[1745498093475,0.2751993,598.59,596.9,1.805]
[1745498093776,0.2751993,598.58,596.9,1.805]
[1745498094075,0.2751993,598.57,596.91,0.30759691]
[1745498094280,0.2751993,598.56,596.91,0.30759691]
[1745498094481,0.2751993,598.55,596.91,0.30759691]
[1745498094675,0.2751993,598.54,596.9,1.805]
[1745498095078,0.2751993,598.53,596.9,1.805]
[1745498095281,1.27887129,598.34,596.9,1.805]
[1745498095580,0.2751993,598.33,596.9,1.805]
[1745498095882,0.2751993,598.32,596.9,1.805]
[1745498096082,0.2751993,598.31,596.9,1.805]
[1745498096382,0.2751993,598.3,596.9,1.805]
[1745498096585,0.27523095,598.29,596.9,1.805]
[1745498096782,0.27523095,598.31,596.9,1.805]
[1745498097082,0.27523095,598.3,596.9,1.805]
[1745498097283,0.27523095,598.31,596.9,1.805]
[1745498097477,0.27523095,598.3,596.9,1.805]
[1745498097678,0.27523095,598.29,596.9,1.805]
[1745498097877,0.27523095,598.28,596.9,1.805]
[1745498098082,0.29123167,598.32,596.9,2.698]
[1745498098083,0.27524376,598.27,596.9,2.698]
[1745498098383,0.27524376,598.26,596.9,2.698]
[1745498098577,0.27524376,598.31,596.9,2.698]
[1745498098782,0.27524376,598.3,596.9,2.698]
[1745498098982,0.27524376,598.31,596.9,2.698]
[1745498099180,0.27524376,598.3,596.9,2.698]
[1745498099383,0.27524376,598.31,596.9,2.698]
[1745498099582,0.27524376,598.29,596.9,2.698]
[1745498099783,0.27524376,598.28,596.9,2.698]
[1745498099986,0.27524376,598.31,596.9,2.698]
[1745498101088,0.27524376,598.3,596.9,2.698]
[1745498101286,0.27524376,598.29,596.9,2.698]
[1745498101484,0.27524376,598.28,596.9,2.698]
[1745498101988,0.27524376,598.27,596.9,2.698]
[1745498102187,0.29121339,598.27,596.9,2.698]
[1745498102387,0.27529366,598.26,596.9,2.698]
[1745498102586,0.27529366,598.25,596.9,2.698]
[1745498102784,0.27529366,598.24,596.9,2.698]
[1745498102980,0.27529366,598.23,596.9,2.698]
[1745498103183,0.27529366,598.22,596.9,2.698]
[1745498103386,0.27529366,598.21,596.9,2.698]
[1745498103583,0.29121339,598.27,596.9,2.698]
[1745498103788,0.2752569,598.26,596.9,2.698]
[1745498104088,0.2752569,598.25,596.9,2.698]
[1745498104288,1.27887129,598.14,596.9,2.698]
[1745498104485,0.2752569,598.13,596.9,2.698]
[1745498104687,0.2752569,598.12,596.9,2.698]
[1745498104889,0.2752569,598.11,596.9,2.698]
[1745498105089,0.2752569,598.1,596.9,2.698]
[1745498105388,0.27525181,598.09,596.9,2.698]
[1745498105589,0.27525181,598.13,596.9,2.698]
[1745498105789,1.27887129,598.14,596.9,2.698]
[1745498105790,0.27525181,598.12,596.9,2.698]
[1745498105989,0.27525181,598.11,596.9,2.698]
[1745498106285,0.27525181,598.1,596.9,2.698]
[1745498106489,1.27887129,598.09,596.9,2.698]
[1745498106691,0.27525181,598.08,596.9,2.698]
[1745498108188,1.27887129,598.09,596.9,2.698]
[1745498108389,0.27524555,598.08,596.9,2.698]
[1745498109189,0.27524555,598.07,596.9,2.698]
[1745498109589,0.27524555,598.06,596.9,2.698]
[1745498109891,0.27524555,598.05,596.9,2.698]
[1745498110092,0.27524555,598.14,596.9,2.698]
[1745498110293,0.27524555,598.13,596.9,2.698]
[1745498110486,0.27524555,598.14,596.9,3.574]
[1745498111088,0.27524555,598.14,596.91,0.61895222]
[1745498111391,0.2751724,598.13,596.92,0.92652463]
[1745498111591,0.2751724,598.27,596.93,0.92652463]
[1745498111886,0.2751724,598.26,596.94,0.61895222]
[1745498112087,0.2751724,598.27,596.95,0.61895222]
[1745498112288,0.2751724,598.26,596.96,0.61895222]
[1745498112493,0.2751724,598.27,596.97,0.61895222]
[1745498112794,1.27887129,598.28,596.9,2.681]
[1745498113094,0.27516826,598.27,596.91,0.92643337]
[1745498113294,0.27516826,598.27,596.92,0.92643337]
[1745498113495,0.27516826,598.27,596.93,0.92643337]
[1745498113696,0.27516826,598.27,596.94,0.61886539]
[1745498113896,0.27516826,598.27,596.95,0.61886539]
[1745498114089,0.27516826,598.27,596.96,0.61886539]
[1745498114292,0.27516826,598.27,596.97,0.61886539]
[1745498114493,0.29123289,598.29,596.9,2.681]
[1745498114790,0.2751714,598.28,596.91,0.92647684]
[1745498114994,0.2751714,598.28,596.92,0.92647684]
[1745498115297,0.2751714,598.28,596.93,0.61890678]
[1745498115495,0.2751714,598.28,596.94,0.61890678]
[1745498115696,0.2751714,598.28,596.95,0.61890678]
[1745498115991,1.27887129,598.41,596.96,0.61890678]
[1745498116196,0.27516976,598.4,596.97,0.61890678]
[1745498116392,0.27516976,598.39,596.92,0.929]
[1745498116596,0.27516976,598.38,596.93,0.61892367]
[1745498116799,0.27516976,598.37,596.94,0.61892367]
[1745498116991,0.27516976,598.36,596.95,0.61892367]
[1745498117195,0.27516976,598.35,596.96,0.9264905]
[1745498117391,0.27516976,598.35,596.97,0.61892367]
[1745498117595,0.27516976,598.34,596.98,0.9264905]
[1745498117796,0.27516976,598.33,596.99,0.61892367]
[1745498117993,0.27516976,598.32,597.0,0.61885131]
[1745498118198,0.27516976,598.31,596.92,0.929]
[1745498118398,0.27516976,598.3,596.93,0.92640476]
[1745498118600,0.27516976,598.3,596.92,0.929]
[1745498118601,0.27516976,598.29,596.94,0.92640476]
[1745498118800,0.27516976,598.28,596.95,0.92640476]
[1745498118995,1.27887129,598.42,596.96,0.6188494]
[1745498119192,0.27514459,598.41,596.97,0.92639331]
[1745498119393,0.27514459,598.4,596.98,0.92639331]
[1745498119693,0.27514459,598.39,596.99,0.92639331]
[1745498119899,0.27514459,598.38,597.0,0.92639331]
[1745498120099,0.27514459,598.4,597.01,0.30754391]
[1745498120300,0.27514459,598.39,597.02,0.61853214]
[1745498120495,1.27887129,598.41,597.03,0.61853214]
[1745498120696,0.27510193,598.4,597.04,0.92603278]
[1745498120897,0.27510193,598.4,597.05,0.61853214]
[1745498121098,0.27510193,598.4,597.06,0.61853214]
[1745498121294,0.27510193,598.4,597.07,0.61853214]
[1745498121496,0.27510193,598.4,597.08,0.61853214]
[1745498121696,0.27510193,598.4,597.09,1.69853214]
[1745498121895,0.27510193,598.4,597.1,0.61842865]
[1745498122196,0.27509912,598.39,597.09,1.08]
[1745498122403,0.27509912,598.4,597.09,1.08]
[1745498122601,0.2911537,598.44,597.09,1.08]
[1745498122602,0.27509912,598.39,597.09,1.08]
[1745498122802,0.27509912,598.43,597.09,1.08]
[1745498123002,0.27509912,598.42,597.09,1.08]
[1745498123202,0.27509912,598.43,597.09,1.08]
[1745498123502,0.27509912,598.42,597.09,1.08]
[1745498123802,0.27509912,598.41,597.09,1.08]
[1745498123998,0.27509912,598.4,597.09,1.08]
[1745498124196,0.27509912,598.39,597.09,1.08]
[1745498124398,0.2911537,598.44,597.09,1.08]
[1745498124399,0.27509912,598.43,597.09,1.08]
[1745498124703,0.27509912,598.42,597.09,1.08]
[1745498124899,0.27509912,598.66,597.09,1.08]
[1745498125102,0.29111229,598.43,597.09,1.08]
[1745498125403,0.27510352,598.42,597.09,1.08]
[1745498125803,0.27510352,598.66,597.09,1.08]
[1745498126004,0.29111229,598.43,597.09,1.08]
[1745498126202,0.27510352,598.42,597.09,1.08]
[1745498126699,0.27510352,598.41,597.09,1.08]
[1745498126903,0.27510352,598.42,597.09,1.08]
[1745498128105,0.27510352,598.41,597.09,1.08]
[1745498128308,1.27887129,598.71,597.09,1.08]
[1745498128510,0.27510246,598.7,597.09,1.08]
[1745498128711,0.27510246,598.69,597.09,1.08]
[1745498128911,0.27510246,598.68,597.09,1.08]
[1745498129107,0.27510246,598.67,597.09,1.08]
[1745498129313,0.27510246,598.66,597.09,1.08]
[1745498129514,0.27510246,598.65,597.09,1.08]
[1745498129913,0.27510278,598.64,597.09,1.08]
[1745498130113,0.27510278,598.63,597.09,1.08]
[1745498130313,0.27510278,598.62,597.09,1.08]
[1745498130512,0.27510278,598.61,597.09,1.08]
[1745498130710,0.27510278,598.6,597.09,1.08]
[1745498130914,0.27510278,598.59,597.09,1.08]
[1745498131112,0.27510278,598.58,597.09,1.08]
[1745498131315,0.27510278,598.57,597.09,1.08]
[1745498131516,0.27510318,598.56,597.09,1.08]
[1745498131713,0.27510318,598.55,597.1,1.098]
[1745498131915,0.27510318,598.54,597.1,1.098]
[1745498132112,0.27510318,598.53,597.11,1.045]
[1745498132317,0.27510318,598.52,597.11,1.045]
[1745498132518,0.27510318,598.51,597.11,1.045]
[1745498132717,0.27510318,598.5,597.11,1.045]
[1745498132914,0.27510318,598.49,597.11,1.045]
[1745498133114,0.27510318,598.58,597.11,1.045]
[1745498133322,0.27510318,598.57,597.11,1.045]
[1745498133514,0.27510318,598.56,597.11,1.045]
[1745498133714,0.27510318,598.55,597.11,1.045]
[1745498133914,0.27510318,598.54,597.11,1.045]
[1745498134219,0.27510318,598.53,597.11,1.045]
[1745498134520,0.27510318,598.52,597.11,1.045]
[1745498134720,0.27510318,598.51,597.11,1.045]
[1745498135015,0.27510318,598.5,597.11,1.045]
[1745498135220,0.27510318,598.49,597.11,1.045]
[1745498135620,0.27510318,598.48,597.11,1.045]
[1745498135915,0.27510318,598.47,597.11,1.045]
[1745498136116,0.27510318,598.54,597.11,1.045]
[1745498136317,0.27510318,598.46,597.11,1.045]
[1745498136518,0.27510318,598.54,597.11,1.045]
[1745498136722,0.27510318,598.53,597.11,1.045]
[1745498136915,0.27510318,598.52,597.11,1.045]
[1745498137119,0.29109281,598.55,597.11,1.045]
[1745498137120,0.27510318,598.51,597.11,1.045]
[1745498137317,0.27510318,598.5,597.11,1.045]
[1745498137623,0.29109281,598.55,597.11,1.045]
[1745498137928,0.27510549,598.54,597.11,1.045]
[1745498138121,0.29109281,598.55,597.11,1.045]
[1745498138122,0.27510549,598.53,597.11,1.045]
[1745498138321,0.27510549,598.52,597.11,1.045]
[1745498138522,0.27510549,598.51,597.11,1.045]
[1745498138722,0.27510549,598.5,597.11,1.045]
[1745498138917,0.27510549,598.49,597.11,1.045]
[1745498139122,0.27510549,598.48,597.11,1.045]
[1745498139422,0.27510549,598.47,597.11,1.045]
[1745498139817,0.27510549,598.46,597.11,1.045]
[1745498140117,0.27510549,598.45,597.11,1.045]
[1745498140422,0.27510549,598.44,597.11,1.045]
[1745498140621,0.27510549,598.43,597.11,1.045]
[1745498140822,0.27510549,598.42,597.11,1.045]
[1745498141021,0.27510549,598.41,597.11,1.045]
[1745498141321,0.27510549,598.4,597.11,1.045]
[1745498141523,0.27510549,598.54,597.11,1.045]
[1745498141822,0.27510549,598.39,597.11,1.045]
[1745498142122,0.27510549,598.38,597.11,1.045]
[1745498142325,0.27510549,598.54,597.11,1.045]
[1745498142522,0.27510549,598.53,597.11,1.045]
[1745498142823,0.27510549,598.52,597.11,1.045]
[1745498143020,0.27510549,598.51,597.11,1.045]
[1745498143218,0.27510549,598.5,597.11,1.045]
[1745498143422,0.27510549,598.49,597.11,1.045]
[1745498143721,0.27510549,598.48,597.11,1.045]
[1745498144021,0.27510549,598.47,597.11,1.045]
[1745498144222,0.27510549,598.46,597.11,1.045]
[1745498144419,0.27510549,598.45,597.11,1.045]
[1745498144624,0.29112447,598.48,597.11,1.045]
[1745498144625,0.27510549,598.44,597.11,1.045]
[1745498144820,0.27510549,598.43,597.11,1.045]
[1745498145024,0.27510549,598.42,597.11,1.045]
[1745498145325,0.27510549,598.41,597.11,1.045]
[1745498145525,0.29112447,598.48,597.11,1.045]
[1745498145726,0.27510727,598.47,597.12,0.784]
[1745498145927,1.27887129,598.39,597.12,0.784]
[1745498146120,0.27510727,598.38,597.12,0.784]
[1745498146424,0.27510727,598.37,597.12,0.784]
[1745498146625,0.27510727,598.36,597.12,0.784]
[1745498146825,1.27887129,598.39,597.12,0.784]
[1745498146826,0.27510727,598.35,597.12,0.784]
[1745498147026,0.27510727,598.34,597.12,0.784]
[1745498147226,0.27510727,598.33,597.12,0.784]
[1745498147426,0.27510727,598.32,597.12,0.784]
[1745498147726,0.27510727,598.31,597.12,0.784]
[1745498147922,0.27510727,598.3,597.12,0.784]
[1745498148125,0.27510727,598.38,597.12,0.784]
[1745498148326,0.27510727,598.37,597.12,0.784]
[1745498148527,1.27887129,598.39,597.12,0.784]
[1745498148726,0.27510569,598.38,597.12,0.784]
[1745498148926,0.27510569,598.37,597.12,0.784]
[1745498149124,0.27510569,598.36,597.12,0.784]
[1745498149427,0.27510569,598.35,597.13,0.3075021]
[1745498149623,0.2911403,598.45,597.13,0.3075021]
[1745498149624,1.55397698,598.34,597.13,0.3075021]
[1745498149827,0.27510569,598.33,597.13,0.3075021]
[1745498150025,0.27510569,598.32,597.13,0.3075021]
[1745498150221,0.27510569,598.31,597.13,0.3075021]
[1745498150427,0.27510569,598.3,597.12,0.784]
[1745498150722,0.27510569,598.29,597.13,0.30750331]
[1745498150927,0.27510569,598.33,597.13,0.30750331]
[1745498151127,0.27510569,598.32,597.12,0.784]
[1745498151323,0.27510569,598.31,597.12,0.784]
[1745498151528,0.27510569,598.3,597.12,0.784]
[1745498151826,1.27887129,598.34,597.12,0.784]
[1745498152023,1.55397725,598.29,597.13,1.041]
[1745498152227,0.27510596,598.28,597.13,1.041]
[1745498153424,1.27887129,598.29,597.13,1.041]
[1745498153622,0.27510658,598.28,597.13,1.041]
[1745498154830,1.27887129,598.27,597.13,1.041]
[1745498155022,0.27510658,598.26,597.13,1.041]
[1745498156525,1.27887129,598.27,597.13,1.041]
[1745498156728,0.27510651,598.25,597.13,1.041]
[1745498156929,0.27510651,598.24,597.13,1.041]
[1745498157228,0.27510651,598.23,597.13,1.041]
[1745498157529,0.27510651,598.22,597.13,1.041]
[1745498157724,0.27510651,598.26,597.13,1.041]
[1745498157930,2.17585741,598.53,597.13,1.041]
[1745498157931,0.27510651,598.25,597.13,1.041]
[1745498158132,1.27887129,598.49,597.13,1.041]
[1745498158332,0.27510592,598.48,597.13,1.041]
[1745498159032,0.2911269,598.47,597.13,1.041]
[1745498159230,0.27510592,598.46,597.13,1.041]
[1745498161028,1.27887129,598.52,597.13,1.041]
[1745498161229,0.27510522,598.51,597.13,1.041]
[1745498162037,0.29112325,598.5,597.13,1.041]
[1745498162232,0.27510522,598.49,597.13,1.041]
[1745498164034,0.27510522,598.48,597.13,1.041]
[1745498164235,0.27510522,598.56,597.13,1.041]
[1745498164430,0.27510522,598.55,597.13,1.041]
[1745498164628,0.27510522,598.56,597.13,1.041]
[1745498165036,0.29113908,598.55,597.13,1.041]
[1745498165234,0.27510522,598.54,597.13,1.041]
[1745498165434,0.29113908,598.55,597.13,1.041]
[1745498165637,0.27513485,598.54,597.13,1.041]
[1745498167237,0.27513485,598.53,597.13,1.041]
[1745498167440,0.27513485,598.7,597.13,1.041]
[1745498168038,0.29112203,598.69,597.13,1.041]
[1745498168239,0.27513485,598.68,597.13,1.041]
[1745498170036,0.29110377,598.67,597.1,0.29110377]
[1745498170442,0.27513485,598.66,597.1,0.29110377]
[1745498171344,0.27513485,598.65,597.11,0.6206405]
[1745498171537,0.27513485,598.64,597.12,0.6206405]
[1745498171741,0.29110377,598.67,597.13,0.6206405]
[1745498171742,0.27513485,598.63,597.13,0.6206405]
[1745498171941,0.27513485,598.62,597.14,0.6206405]
[1745498172139,0.27513485,598.66,597.15,0.62057722]
[1745498172343,0.27513485,598.66,597.16,0.62057722]
[1745498172647,0.27513485,598.66,597.17,0.62057722]
[1745498172945,0.56620331,598.65,597.18,0.62057722]
[1745498173145,0.27513485,598.64,597.19,0.62057722]
[1745498173347,0.2750482,598.63,597.2,0.62057722]
[1745498173547,0.2750482,598.64,597.21,0.62057722]
[1745498173746,0.2750482,598.63,597.22,0.62057722]
[1745498173947,0.2750482,598.64,597.23,0.62057722]
[1745498174142,0.2750482,598.64,597.24,0.62057722]
[1745498174342,0.2750482,598.64,597.25,0.62057722]
[1745498174548,0.2750482,598.64,597.26,0.62057722]
[1745498174749,0.2750482,598.64,597.27,0.62057722]
[1745498174941,0.2750482,598.64,597.28,0.62057722]
[1745498175146,0.2750482,598.64,597.29,0.62057722]
[1745498175444,0.2750482,598.64,597.3,0.62057722]
[1745498175648,0.2750482,598.64,597.31,0.62057722]
[1745498175849,0.2750482,598.64,597.32,0.62057722]
[1745498176047,0.2750482,598.64,597.33,0.62057722]
[1745498176247,0.2750482,598.83,596.66,1.06343516]
[1745498176451,1.27887129,598.84,596.67,0.61911927]
[1745498176648,0.27499073,598.82,596.68,0.61911927]
[1745498176845,0.27499073,598.83,596.69,0.92650678]
[1745498177050,0.29108794,598.81,596.7,0.92650678]
[1745498177248,0.27499073,598.8,596.71,0.92650678]
[1745498177449,0.27499073,598.8,596.72,0.92650678]
[1745498177643,0.27499073,598.8,596.73,0.92650678]
[1745498177848,0.27499073,598.8,596.74,0.92650678]
[1745498178049,0.27499073,598.8,596.75,0.61911927]
[1745498178248,0.27499073,598.8,596.76,0.92650678]
[1745498178451,0.27499073,598.8,596.77,0.92650678]
[1745498178646,0.27499073,598.8,596.78,0.61911927]
[1745498178843,1.27887129,598.84,596.79,0.61911927]
[1745498179045,1.27887129,599.06,596.8,0.61911927]
[1745498179343,1.27887129,599.06,596.81,0.61911927]
[1745498179651,0.27498287,599.05,596.82,0.61911927]
[1745498179851,1.27887129,599.06,596.83,0.61911927]
[1745498180049,1.27887129,599.06,596.84,0.61911927]
[1745498180050,0.27498583,599.04,596.84,0.61911927]
[1745498180250,0.566019,599.05,596.85,0.61911927]
[1745498180550,0.27498583,599.04,596.86,0.92650204]
[1745498180850,0.27498583,599.03,596.87,0.92650204]
[1745498181050,0.27498583,599.02,596.88,0.92650204]
[1745498181252,0.27498583,599.01,596.89,0.92650204]
[1745498181451,0.27498583,599.0,596.9,0.92650204]
[1745498181647,0.27498583,598.99,596.91,0.92650204]
[1745498181851,0.27498583,598.99,596.92,0.92650204]
[1745498182049,0.27498583,598.98,596.93,0.92591231]
[1745498182245,0.27498583,598.97,596.94,0.92591231]
[1745498182450,0.27498583,598.96,596.95,0.92591231]
[1745498182646,0.27498583,598.96,596.96,0.92591231]
[1745498182846,0.27498583,598.95,596.97,0.92591231]
[1745498183151,0.27498583,598.94,596.98,0.92591231]
[1745498183351,0.27498583,598.93,596.99,0.92591231]
[1745498183551,0.27498583,598.92,597.0,0.92591231]
[1745498183746,0.27498583,598.92,597.01,0.61852954]
[1745498183952,0.27498583,598.91,597.02,0.92591231]
[1745498184147,0.27498583,598.9,597.03,0.92591231]
[1745498184350,0.27498583,598.89,597.04,0.92591231]
[1745498184546,0.27498583,598.88,597.05,0.92591231]
[1745498184851,0.27498583,598.87,597.06,0.92591231]
[1745498185046,0.27498583,598.86,597.07,0.92591231]
[1745498185352,0.27498583,598.85,597.08,0.92591231]
[1745498185553,0.27498583,598.84,597.09,0.92591231]
[1745498185748,0.27498583,598.83,597.1,0.92591231]
[1745498185947,0.27498583,598.83,596.67,1.06343516]
[1745498185948,0.27498583,598.82,597.11,0.92591231]
[1745498186145,0.27498583,598.81,597.12,0.92591231]
[1745498186346,0.27498583,598.8,597.13,0.92591231]
[1745498186545,0.27498583,598.79,597.14,0.92591231]
[1745498186746,0.27498583,598.78,597.15,0.92591231]
[1745498186951,0.27498583,598.77,597.16,0.92591231]
[1745498187147,0.27498583,598.76,597.17,0.92591231]
[1745498187347,0.27498583,598.75,597.18,0.92591231]
[1745498187550,0.27498583,598.74,597.19,0.92591231]
[1745498187753,0.27498072,598.73,597.2,0.92590687]
[1745498187947,0.2909918,598.73,597.21,0.92590687]
[1745498188151,0.27498072,598.72,597.22,0.92590687]
[1745498188451,0.27498072,598.71,597.23,0.92590687]
[1745498188649,0.27498072,598.71,596.9,0.29099423]
[1745498188650,0.27498072,598.7,597.24,0.92590687]
[1745498188850,0.27498072,598.69,597.25,0.92590687]
[1745498189049,0.27498072,598.68,597.26,0.92590687]
[1745498189252,0.27498072,598.67,597.27,0.92590687]
[1745498189445,0.27498072,598.66,597.28,0.92590687]
[1745498189645,0.27498072,598.66,597.29,0.92590687]
[1745498189852,0.27498072,598.65,597.3,0.92590687]
[1745498190153,0.27498072,598.64,596.9,0.29099423]
[1745498190347,0.27498072,598.72,596.91,0.92506029]
[1745498190552,0.27498072,598.72,596.9,0.29099423]
[1745498190553,0.27498072,598.71,596.92,0.92506029]
[1745498190852,0.27498072,598.72,596.93,0.92506029]
[1745498191047,0.27498072,598.71,596.94,0.92506029]
[1745498191251,0.27498072,598.7,596.95,0.92506029]
[1745498191454,0.27498072,598.72,596.96,0.92506029]
[1745498191652,0.27498072,598.71,596.97,0.92506029]
[1745498191953,0.27498072,598.7,596.98,0.92506029]
[1745498192153,0.27498072,598.72,596.99,0.92506029]
[1745498192347,0.2909918,598.73,597.0,0.61768512]
[1745498192553,0.27497619,598.71,597.01,0.92505783]
[1745498192752,0.27497619,598.72,597.02,0.92505783]
[1745498192949,0.2909918,598.73,597.03,0.61768512]
[1745498193148,0.27497552,598.72,597.04,0.92505718]
[1745498193356,0.27497552,598.72,597.05,0.92505718]
[1745498193552,0.27497552,598.72,597.06,0.92505718]
[1745498193754,0.27497552,598.72,597.07,0.92505718]
[1745498193956,1.27887129,599.11,597.08,0.61768512]
[1745498194156,0.27497877,599.1,597.09,0.92506046]
[1745498194353,0.27497877,599.09,597.1,0.92506046]
[1745498194561,0.27497877,599.08,597.11,0.92506046]
[1745498194761,0.27497877,599.08,597.12,0.92506046]
[1745498194957,0.27497877,599.07,597.13,0.92506046]
[1745498195154,0.56597422,599.07,597.14,0.92506046]
[1745498195461,0.56597422,599.07,597.15,0.92506046]
[1745498195762,0.27498815,599.06,597.16,0.61768512]
[1745498195959,0.27498815,599.05,597.17,0.61768512]
[1745498196155,0.27498815,599.05,597.18,0.61768512]
[1745498196356,0.27498815,599.05,597.19,0.61768512]
[1745498196661,0.27498815,599.05,597.2,0.61768512]
[1745498196859,0.27498815,599.05,597.21,0.61768512]
[1745498197059,0.29099058,599.04,597.22,0.61768512]
[1745498197256,0.29099058,599.04,597.15,0.30737534]
[1745498197457,0.29099058,599.04,597.16,0.61746569]
[1745498197760,0.29099058,599.04,597.17,0.61746569]
[1745498197962,0.29099058,599.04,597.18,0.61746569]
[1745498198158,0.29099058,599.04,597.09,0.29099058]
[1745498198462,0.29099058,599.04,597.1,0.61760175]
[1745498198656,0.29099058,599.04,597.11,0.61760175]
[1745498198859,0.29099058,599.04,597.12,0.61760175]
[1745498199061,0.29099058,599.04,597.13,0.61760175]
[1745498199262,0.29099058,599.04,597.14,0.61760175]